bitfinex/quotes_SOLUSD_20251024
["timestamp","ask_amount","ask_price","bid_price","bid_amount"]
[1761282232084,5.17544767,193.22,193.16,0.7]
[1761282232581,18.11406686,193.22,193.16,0.7]
[1761282233782,20.68345164,193.25,193.16,0.7]
[1761282233978,0.646864,193.24,193.16,0.7]
[1761282234170,19.42808537,193.25,193.16,0.7]
[1761282234371,22.00028217,193.25,193.16,0.7]
[1761282236089,0.67,193.24,193.16,0.7]
[1761282236290,0.64689747,193.23,193.16,0.7]
[1761282237185,18.11406686,193.22,193.16,0.7]
[1761282237780,18.78406686,193.22,193.16,0.7]
[1761282238092,18.78406686,193.22,193.14,0.1]
[1761282238093,0.67,193.21,193.14,0.1]
[1761282238381,2.5721968,193.15,193.14,0.1]
[1761282238586,0.64713191,193.16,193.14,1e-08]
[1761282238884,13.44867201,193.15,193.07,0.1]
[1761282239068,2.5721968,193.09,193.07,0.1]
[1761282239268,5.17920033,193.08,193.07,0.1]
[1761282239777,5.17890804,193.1,193.07,0.8]
[1761282240282,5.17890804,193.1,193.07,0.1]
[1761282240787,18.1255678,193.1,193.07,0.8]
[1761282241763,5.17890804,193.1,193.07,0.8]
[1761282243280,12.94620458,193.11,193.07,0.8]
[1761282244287,5.17812758,193.12,193.07,0.8]
[1761282244666,18.12344655,193.12,193.07,0.8]
[1761282244870,22.01290929,193.12,193.07,0.1]
[1761282245188,21.34290929,193.12,193.07,0.8]
[1761282245392,0.67,193.11,193.07,0.1]
[1761282245579,19.44071249,193.12,193.07,0.1]
[1761282245894,0.64729946,193.11,193.07,0.8]
[1761282246591,3.88949626,193.11,193.07,0.1]
[1761282247081,0.67,193.1,193.07,0.1]
[1761282247482,5.1789321,193.09,193.07,0.1]
[1761282251305,5.17812758,193.12,193.08,0.68]
[1761282251476,5.17812758,193.12,193.08,37.12]
[1761282251671,5.1777694,193.14,193.08,37.12]
[1761282251876,5.1777694,193.14,193.09,0.68]
[1761282253011,18.12174786,193.14,193.09,0.68]
[1761282253374,12.94397846,193.14,193.09,0.68]
[1761282254400,5.17705529,193.16,193.09,0.68]
[1761282255395,18.11745871,193.19,193.09,0.68]
[1761282256173,3.21926171,193.18,193.09,0.68]
[1761282256802,0.64706491,193.18,193.09,0.68]
[1761282257177,18.11875549,193.17,193.09,0.68]
[1761282258503,1.36713191,193.16,193.09,0.68]
[1761282259606,18.12063162,193.15,193.09,0.68]
[1761282261504,12.9433083,193.15,193.09,0.68]
[1761282263003,18.11687974,193.19,193.09,0.68]
[1761282263202,0.72,193.17,193.09,0.68]
[1761282264086,18.11969351,193.16,193.09,0.68]
[1761282264592,0.72,193.15,193.09,0.68]
[1761282264997,18.83969351,193.16,193.09,0.68]
[1761282265415,0.72,193.15,193.1,36.36]
[1761282266518,18.12156984,193.14,193.1,36.36]
[1761282266989,18.12156984,193.14,193.11,0.68]
[1761282267184,18.12156984,193.14,193.1,36.36]
[1761282267483,0.72,193.13,193.1,36.36]
[1761282267687,18.84156984,193.14,193.1,36.36]
[1761282268093,18.12156984,193.14,193.11,0.67]
[1761282268497,12.94397846,193.14,193.11,0.67]
[1761282268683,12.94397846,193.14,193.12,36.38]
[1761282269817,12.94397846,193.14,193.13,36.36]
[1761282270620,44.66287805,193.17,193.13,36.36]
[1761282270922,18.11875549,193.17,193.14,0.67]
[1761282271289,18.11875549,193.17,193.14,37.03]
[1761282271712,18.11875549,193.17,193.15,0.67]
[1761282272603,18.11594202,193.2,193.15,0.67]
[1761282272803,5.17598343,193.2,193.15,0.67]
[1761282272998,5.17544767,193.22,193.15,0.67]
[1761282273411,5.17544767,193.22,193.16,36.36]
[1761282273922,5.17544767,193.22,193.17,0.67]
[1761282274091,5.17544767,193.22,193.17,37.03]
[1761282274292,5.17544767,193.22,193.18,0.67]
[1761282275113,12.93801587,193.23,193.18,0.67]
[1761282275721,0.66,193.22,193.17,36.36]
[1761282276207,0.66,193.22,193.17,37.03]
[1761282276796,0.66,193.22,193.17,36.36]
[1761282277324,18.11500439,193.21,193.17,36.36]
[1761282277817,18.77500439,193.21,193.17,36.36]
[1761282278324,18.11500439,193.21,193.17,36.36]
[1761282278507,0.66,193.2,193.17,36.36]
[1761282279210,5.17625135,193.19,193.17,36.36]
[1761282279410,22.88,193.16,192.96,0.67]
[1761282279717,22.88,193.16,192.94,0.1]
[1761282279718,22.88,193.12,192.98,3.37193441]
[1761282279926,22.88,193.07,192.99,2.89]
[1761282280125,22.88,193.07,192.99,5.19]
[1761282280314,1.3074671,193.06,192.99,5.19]
[1761282280520,1.64756766,193.03,192.99,4.52]
[1761282280827,0.66,193.05,192.99,4.52]
[1761282281311,19.77852496,193.04,192.99,4.52]
[1761282281639,18.1309573,193.04,193.0,0.67]
[1761282282609,12.95068379,193.04,193.0,0.67]
[1761282282931,5.18000518,193.05,192.99,4.52]
[1761282282932,18.13001813,193.05,192.99,4.52]
[1761282283128,4.80242149,193.04,192.99,4.52]
[1761282283508,22.25243962,193.05,193.0,0.67]
[1761282283709,4.12242149,193.04,192.99,4.52]
[1761282284121,4.80242149,193.03,192.99,4.52]
[1761282284525,5.18081027,193.02,192.99,4.52]
[1761282284729,5.86081027,193.02,193.0,36.94]
[1761282285334,5.18081027,193.02,193.0,36.94]
[1761282285707,18.13283596,193.02,193.0,36.94]
[1761282285931,18.13283596,193.02,192.94,0.1]
[1761282286133,5.18081027,193.02,192.99,36.94]
[1761282286629,0.68,193.01,192.99,36.94]
[1761282286942,5.18081027,193.02,192.99,36.94]
[1761282287440,5.18051172,193.04,193.0,0.67]
[1761282287985,0.68,193.03,192.94,0.1]
[1761282288104,0.68,193.03,192.96,0.67]
[1761282288433,5.18051172,193.04,192.96,0.67]
[1761282288631,5.17973686,193.06,192.96,0.67]
[1761282288809,18.12907903,193.06,192.96,0.67]
[1761282289433,18.12907903,193.06,192.97,10.87647521]
[1761282289926,18.12907903,193.06,192.98,0.67]
[1761282290126,22.25150052,193.06,192.98,0.67]
[1761282290434,4.12242149,193.05,192.99,31.76]
[1761282291017,5.18027351,193.04,192.99,32.43]
[1761282291534,5.18027351,193.04,193.0,0.67]
[1761282291739,0.68,193.11,193.0,0.67]
[1761282291947,12.94800082,193.08,193.0,0.67]
[1761282292543,17.07042231,193.08,193.0,0.67]
[1761282292930,22.24962264,193.08,193.0,0.67]
[1761282293642,18.12720115,193.08,193.0,0.67]
[1761282294449,18.12720115,193.08,193.01,36.92]
[1761282294625,18.12720115,193.08,193.02,36.9]
[1761282294825,22.24962264,193.08,193.02,36.9]
[1761282295142,4.12242149,193.07,193.03,36.9]
[1761282295618,0.68,193.06,192.98,0.67]
[1761282295823,4.80242149,193.06,192.99,36.9]
[1761282296245,4.80242149,193.06,193.0,36.9]
[1761282296626,4.12242149,193.07,193.0,36.9]
[1761282296842,4.12242149,193.07,193.01,0.67]
[1761282297022,5.17973686,193.06,193.02,36.92]
[1761282297222,5.17973686,193.06,193.01,0.67]
[1761282297742,5.17973686,193.06,193.02,36.9]
[1761282298119,5.17973686,193.06,193.02,37.57]
[1761282298443,5.17973686,193.06,193.03,0.67]
[1761282299350,12.94800082,193.08,193.03,0.67]
[1761282299646,12.94800082,193.08,193.04,36.88]
[1761282300028,12.94800082,193.08,193.04,37.55]
[1761282300420,5.1789321,193.09,193.05,0.67]
[1761282300624,25.86920792,193.28,193.05,0.67]
[1761282300625,5.17732332,193.15,193.05,0.67]
[1761282301051,9.29974481,193.15,193.05,0.67]
[1761282301342,4.12242149,193.09,193.06,36.88]
[1761282301551,5.17901261,193.09,193.06,36.88]
[1761282301934,5.17901261,193.09,193.05,0.67]
[1761282302135,5.85901261,193.09,193.03,23.55]
[1761282302351,12.94543371,193.12,193.03,23.55]
[1761282302352,5.17865623,193.11,193.06,36.9]
[1761282302838,5.17865623,193.11,193.06,37.57]
[1761282303226,5.85865623,193.11,193.06,0.67]
[1761282303432,0.68,193.1,193.07,36.88]
[1761282304137,0.68,193.1,193.08,36.88]
[1761282305149,5.17785947,193.13,193.09,0.67]
[1761282305337,12.94448887,193.14,193.09,0.67]
[1761282305649,13.62448887,193.14,193.09,0.67]
[1761282306752,18.11781757,193.18,193.09,0.67]
[1761282306944,0.68,193.17,193.09,0.67]
[1761282307142,18.11781757,193.18,193.09,0.67]
[1761282307450,18.79781757,193.18,193.09,0.67]
[1761282308148,5.1765193,193.18,193.09,0.67]
[1761282308741,5.17625135,193.19,193.09,5.84891068]
[1761282309355,5.17625135,193.19,193.1,0.67]
[1761282309849,5.17625135,193.19,193.1,28.72850907]
[1761282310149,5.17625135,193.19,193.11,0.67]
[1761282310554,0.64679706,193.26,193.11,0.67]
[1761282310555,0.64679706,193.26,193.12,10.87647521]
[1761282310748,5.17410875,193.27,193.16,33.75647521]
[1761282310951,5.17410875,193.27,193.18,10.87647521]
[1761282311256,5.17386837,193.28,193.19,59.76]
[1761282311433,5.17386837,193.28,193.19,60.48]
[1761282311757,5.37357333,193.3,193.23,22.88]
[1761282312050,6.06357333,193.3,193.24,36.88]
[1761282312441,18.99683768,193.3,193.24,36.88]
[1761282312834,0.69,193.29,193.18,0.72]
[1761282313029,4.11556833,193.28,193.19,16.96]
[1761282313235,4.11556833,193.28,193.22,22.88]
[1761282313446,0.69,193.27,193.22,22.88]
[1761282314053,4.11556833,193.24,193.15,0.72]
[1761282314354,4.11556833,193.23,193.15,0.72]
[1761282314555,4.11556833,193.19,193.1,0.72]
[1761282314759,4.11556833,193.16,193.11,36.9]
[1761282314974,4.11556833,193.16,193.12,25.82]
[1761282315150,0.69,193.17,193.12,25.82]
[1761282315469,4.11556833,193.17,193.12,25.82]
[1761282315634,0.69,193.16,193.12,25.82]
[1761282315835,9.29315971,193.14,193.12,25.82]
[1761282316346,0.69,193.13,193.12,25.82]
[1761282316734,4.80556833,193.13,193.12,25.82]
[1761282316936,0.69,193.13,193.12,25.82]
[1761282318151,5.86785947,193.13,193.12,25.82]
[1761282320441,12.94138368,193.18,193.12,26.54]
[1761282320639,12.94138368,193.18,193.13,0.72]
[1761282320857,12.94138368,193.18,193.12,25.82]
[1761282320858,18.11875549,193.17,193.12,25.82]
[1761282321160,18.11875549,193.17,193.13,36.86]
[1761282321557,18.80875549,193.17,193.1,0.72]
[1761282321761,18.80875549,193.17,193.11,36.88]
[1761282325367,5.45270024,193.16,193.07,0.72]
[1761282325567,5.45270024,193.16,193.08,36.86]
[1761282325774,0.69,193.15,193.08,36.86]
[1761282325963,0.69,193.15,193.08,37.58]
[1761282326474,18.12156984,193.14,193.08,37.58]
[1761282327575,24.9464306,193.14,193.08,36.86]
[1761282328274,18.81156984,193.14,193.08,37.55]
[1761282328470,12.94397846,193.14,193.08,37.55]
[1761282328669,5.17732332,193.15,193.09,0.69]
[1761282330560,5.1765193,193.18,193.12,22.88]
[1761282330766,5.1765193,193.18,193.13,36.8]
[1761282330957,5.1765193,193.18,193.13,37.49]
[1761282331159,5.17607311,193.2,193.14,0.69]
[1761282331565,5.88607311,193.2,193.14,0.69]
[1761282331757,5.88607311,193.2,193.13,36.8]
[1761282331758,0.71,193.19,193.13,36.8]
[1761282332854,0.64689747,193.23,193.14,11.56647521]
[1761282333061,0.71,193.22,193.16,22.88]
[1761282333562,0.71,193.22,193.16,23.57]
[1761282333871,18.11350433,193.23,193.17,0.69]
[1761282334053,18.11350433,193.23,193.18,36.8]
[1761282334251,18.82350433,193.23,193.18,36.8]
[1761282334470,0.71,193.22,193.18,36.8]
[1761282334860,12.9383245,193.23,193.18,36.8]
[1761282335081,12.9383245,193.23,193.19,0.69]
[1761282336057,12.9383245,193.23,193.2,36.78]
[1761282336455,5.17440686,193.26,193.21,0.69]
[1761282336969,5.88440686,193.26,193.21,0.69]
[1761282337357,18.82034807,193.26,193.21,0.69]
[1761282338071,18.11034807,193.26,193.2,36.78]
[1761282338275,0.71,193.25,193.2,36.78]
[1761282338868,0.71,193.25,193.2,37.47]
[1761282339277,5.17491202,193.24,193.2,37.47]
[1761282339474,18.11219208,193.24,193.2,36.78]
[1761282339682,0.71,193.23,193.21,36.76]
[1761282339866,0.71,193.23,193.22,36.76]
[1761282340568,18.11219208,193.24,193.22,36.76]
[1761282341455,12.93728006,193.24,193.22,36.76]
[1761282341866,13.63728006,193.24,193.22,36.76]
[1761282342772,12.93728006,193.24,193.22,36.76]
[1761282342986,0.7,193.23,193.22,36.76]
[1761282343287,13.63728006,193.24,193.22,36.76]
[1761282343782,18.81219208,193.24,193.22,36.76]
[1761282344364,18.11219208,193.24,193.22,36.76]
[1761282345880,12.93728006,193.24,193.22,36.76]
[1761282346274,5.17441877,193.26,193.23,0.68]
[1761282347995,12.93594121,193.26,193.23,0.68]
[1761282350083,18.10844369,193.28,193.23,0.68]
[1761282351480,12.93460264,193.28,193.23,0.68]
[1761282353383,5.17357338,193.29,193.23,0.68]
[1761282353586,0.2,193.3,193.23,0.68]
[1761282354088,5.37338442,193.3,193.23,0.68]
[1761282355684,18.30664877,193.3,193.23,0.68]
[1761282356770,18.30664877,193.3,193.24,36.62]
[1761282357282,18.30664877,193.3,193.25,0.68]
[1761282357689,18.30664877,193.3,193.26,36.62]
[1761282358190,18.30664877,193.3,193.26,37.3]
[1761282364412,0.7,193.29,193.23,22.88]
[1761282364691,0.7,193.29,193.24,36.56]
[1761282364900,0.7,193.29,193.24,37.24]
[1761282365211,18.30664877,193.3,193.25,0.68]
[1761282369794,0.2,193.3,193.25,0.68]
[1761282370299,5.37341343,193.3,193.25,0.68]
[1761282370481,0.2,193.34,193.28,33.75647521]
[1761282370682,0.2,193.34,193.29,5.50144891]
[1761282370903,5.37233236,193.34,193.3,37.24]
[1761282371201,5.37233236,193.34,193.31,36.56]
[1761282371506,6.06233236,193.34,193.31,36.56]
[1761282372004,5.37233236,193.34,193.31,36.56]
[1761282373205,6.06233236,193.34,193.31,36.56]
[1761282373503,0.69,193.33,193.27,0.69]
[1761282373698,0.69,193.33,193.28,36.56]
[1761282374094,1.33656287,193.33,193.26,0.69]
[1761282374289,1.33656287,193.33,193.27,36.54]
[1761282374606,18.10469686,193.32,193.27,36.54]
[1761282375107,18.79469686,193.32,193.28,0.69]
[1761282375708,18.10469686,193.32,193.28,0.69]
[1761282377408,12.93192633,193.32,193.28,0.69]
[1761282380009,0.69,193.31,193.27,36.54]
[1761282381616,12.93192633,193.32,193.27,37.23]
[1761282381786,13.62192633,193.32,193.27,37.23]
[1761282381983,5.17277053,193.32,193.28,0.69]
[1761282382712,18.79469686,193.32,193.28,0.69]
[1761282383084,18.10469686,193.32,193.28,0.69]
[1761282383703,12.93192633,193.32,193.28,0.69]
[1761282387708,5.17250297,193.33,193.28,0.69]
[1761282388514,5.17303812,193.31,193.29,0.7]
[1761282389089,5.1727502,193.33,193.29,0.7]
[1761282390110,0.2,193.34,193.3,33.75647521]
[1761282390413,0.2,193.34,193.31,36.46]
[1761282390613,0.2,193.34,193.31,37.16]
[1761282390813,0.2,193.34,193.32,0.7]
[1761282391114,0.2,193.34,193.33,22.88]
[1761282391316,0.2,193.34,193.33,23.58]
[1761282392717,0.2,193.34,193.33,39.62897818]
[1761282395001,0.2,193.38,193.37,33.75647521]
[1761282395206,0.2,193.38,193.37,70.89647521]
[1761282396612,0.2,193.38,193.37,76.06790821]
[1761282397921,0.2,193.38,193.37,70.89647521]
[1761282400420,0.2,193.38,193.37,76.06790821]
[1761282401418,0.2,193.38,193.37,70.89647521]
[1761282402420,0.2,193.38,193.37,76.06790821]
[1761282406934,0.2,193.38,193.37,76.02790821]
[1761282410337,0.2,193.38,193.37,39.62790821]
[1761282410520,0.2,193.38,193.37,76.02790821]
[1761282411222,0.2,193.38,193.37,39.62790821]
[1761282411422,0.2,193.38,193.37,76.02790821]
[1761282412936,0.2,193.42,193.37,150.75649072]
[1761282413136,0.2,193.42,193.41,22.88]
[1761282413337,0.2,193.42,193.41,59.28]
[1761282413840,0.2,193.42,193.41,59.99]
[1761282414140,0.2,193.42,193.41,59.28]
[1761282414507,0.2,193.42,193.41,22.88]
[1761282414708,0.2,193.42,193.41,59.28]
[1761282416933,0.2,193.42,193.41,22.88]
[1761282417132,0.2,193.42,193.41,59.28]
[1761282419042,0.2,193.42,193.41,59.99]
[1761282419743,0.88,193.42,193.41,59.28]
[1761282420845,0.2,193.42,193.41,59.28]
[1761282421949,0.88,193.42,193.41,59.28]
[1761282422121,6.05009616,193.42,193.4,22.88]
[1761282422438,0.2,193.42,193.41,36.4]
[1761282424550,6.05009616,193.42,193.41,36.4]
[1761282424846,5.37009616,193.42,193.41,36.4]
[1761282425143,6.05009616,193.42,193.41,36.4]
[1761282425560,0.2,193.42,193.41,22.88]
[1761282425727,0.2,193.42,193.41,59.28]
[1761282426641,0.2,193.42,193.41,59.99]
[1761282428146,0.2,193.42,193.41,59.28]
[1761282429639,0.2,193.42,193.41,59.99]
[1761282430342,0.2,193.42,193.41,76.03683868]
[1761282430642,0.2,193.42,193.41,70.86647521]
[1761282431349,0.2,193.42,193.41,76.03683868]
[1761282431521,0.2,193.44,193.43,16.04630408]
[1761282431728,0.2,193.46,193.45,33.75647521]
[1761282431934,0.2,193.46,193.45,70.15647521]
[1761282432129,0.2,193.46,193.45,70.85647521]
[1761282432840,0.2,193.46,193.45,34.45647521]
[1761282433039,0.2,193.46,193.45,76.0057696]
[1761282433427,0.2,193.49,193.48,22.88]
[1761282433628,0.2,193.49,193.48,59.26]
[1761282433827,0.2,193.49,193.48,59.96]
[1761282434342,0.2,193.49,193.48,59.26]
[1761282435828,0.2,193.49,193.48,22.88]
[1761282436030,0.2,193.49,193.48,59.26]
[1761282438160,0.86,193.49,193.48,36.38]
[1761282438361,0.2,193.49,193.48,36.38]
[1761282444661,0.2,193.49,193.48,59.26]
[1761282445646,0.2,193.49,193.48,22.88]
[1761282445947,0.2,193.49,193.48,59.26]
[1761282446341,0.2,193.5,193.49,10.87647521]
[1761282446555,0.2,193.53,193.52,33.75647521]
[1761282446854,0.2,193.58,193.56,22.88]
[1761282447065,0.2,193.58,193.57,47.25647521]
[1761282447239,0.2,193.58,193.57,47.95647521]
[1761282447937,6.02418269,193.65,193.6,22.88]
[1761282448142,6.02418269,193.65,193.61,36.38]
[1761282448337,5.36418269,193.65,193.61,36.38]
[1761282448539,0.71,193.64,193.61,36.38]
[1761282449244,0.71,193.64,193.6,22.88]
[1761282449451,0.71,193.64,193.62,36.36]
[1761282449656,0.71,193.64,193.63,36.36]
[1761282450465,5.87422226,193.64,193.63,36.36]
[1761282453041,19.43030571,193.64,193.63,36.36]
[1761282454965,18.78477793,193.64,193.63,36.36]
[1761282455173,18.78477793,193.64,193.57,22.88]
[1761282455370,0.71,193.63,193.58,36.36]
[1761282456066,0.71,193.63,193.57,22.88]
[1761282456366,0.71,193.63,193.58,36.36]
[1761282456965,5.1647557,193.62,193.58,36.36]
[1761282457546,0.71,193.61,193.58,36.36]
[1761282457843,5.16528925,193.6,193.57,22.88]
[1761282458044,5.16528925,193.6,193.58,36.36]
[1761282458648,0.71,193.59,193.57,22.88]
[1761282458951,0.71,193.59,193.58,36.36]
[1761282459847,5.87555607,193.59,193.58,36.36]
[1761282460169,5.87555607,193.59,193.53,23.55]
[1761282460170,18.78944625,193.59,193.53,23.55]
[1761282460356,18.78944625,193.59,193.54,36.36]
[1761282460664,18.07944625,193.59,193.54,36.36]
[1761282460836,0.71,193.58,193.54,37.03]
[1761282461252,5.16608978,193.57,193.56,22.88]
[1761282461653,18.80131424,193.57,193.47,0.71]
[1761282461853,18.80131424,193.57,193.48,36.36]
[1761282461854,1.36579458,193.56,193.48,36.36]
[1761282462370,0.72,193.55,193.48,59.24]
[1761282462559,0.72,193.55,193.48,59.95]
[1761282463458,5.16689056,193.54,193.48,23.59]
[1761282463662,5.88582291,193.58,193.49,37.07]
[1761282463865,0.72,193.57,193.49,37.07]
[1761282464167,1.36576122,193.57,193.49,36.36]
[1761282464479,5.16582291,193.58,193.53,22.88]
[1761282464664,5.16582291,193.58,193.54,36.36]
[1761282464851,5.16582291,193.58,193.54,37.07]
[1761282465046,5.16582291,193.58,193.53,22.88]
[1761282465247,0.72,193.57,193.54,36.36]
[1761282465470,5.16635668,193.56,193.55,36.36]
[1761282465974,5.88635668,193.56,193.55,36.36]
[1761282468878,12.91488467,193.58,193.55,36.36]
[1761282469173,5.88555607,193.59,193.55,37.07]
[1761282470069,0.72,193.58,193.55,36.36]
[1761282470270,0.72,193.58,193.51,0.71]
[1761282470597,2.55934746,193.55,193.52,36.36]
[1761282470883,5.16689056,193.54,193.52,36.36]
[1761282471053,5.88689056,193.54,193.52,36.36]
[1761282471255,0.72,193.53,193.52,36.36]
[1761282471799,3.27934746,193.53,193.43,0.71]
[1761282472003,3.27934746,193.53,193.45,36.34]
[1761282472004,3.20527552,193.52,193.45,36.34]
[1761282472294,3.92527552,193.52,193.45,59.22]
[1761282472469,0.72,193.51,193.45,59.22]
[1761282472886,5.16795865,193.5,193.45,59.22]
[1761282473383,5.88795865,193.5,193.45,59.93]
[1761282474499,12.91918828,193.52,193.45,59.93]
[1761282474500,0.72,193.49,193.45,59.22]
[1761282475199,0.72,193.49,193.44,30.98]
[1761282475380,0.72,193.49,193.46,36.36]
[1761282477401,5.16849286,193.48,193.46,36.36]
[1761282477901,5.16849286,193.48,193.46,37.07]
[1761282478408,5.88849286,193.48,193.46,36.36]
[1761282478981,5.16849286,193.48,193.46,36.36]
[1761282479402,5.88849286,193.48,193.46,36.36]
[1761282480510,18.80807366,193.5,193.46,36.36]
[1761282480711,18.08807366,193.5,193.47,0.71]
[1761282481300,18.08807366,193.5,193.46,36.36]
[1761282481506,18.80807366,193.5,193.46,36.36]
[1761282482112,18.08807366,193.5,193.47,0.71]
[1761282483013,12.92011501,193.5,193.47,0.71]
[1761282483204,13.64011501,193.5,193.46,36.36]
[1761282483516,12.92011501,193.5,193.46,37.07]
[1761282483730,5.1673807,193.53,193.47,0.71]
[1761282483894,5.16662361,193.55,193.5,22.88]
[1761282484217,15.47946247,193.61,193.51,36.36]
[1761282484218,13.63439123,193.59,193.51,36.36]
[1761282484396,5.16582291,193.58,193.52,10.87647521]
[1761282484598,5.16582291,193.58,193.52,11.58647521]
[1761282484905,5.16582291,193.58,193.53,0.71]
[1761282485104,13.63439123,193.59,193.53,0.71]
[1761282485409,0.72,193.58,193.53,0.71]
[1761282485998,12.91439123,193.59,193.53,0.71]
[1761282486210,13.63439123,193.59,193.53,0.71]
[1761282487112,18.0799473,193.59,193.53,0.71]
[1761282487613,18.7999473,193.59,193.53,0.71]
[1761282488714,5.16555607,193.59,193.53,0.71]
[1761282488899,5.16502246,193.61,193.53,0.71]
[1761282489106,5.16502246,193.61,193.55,22.88]
[1761282489305,5.16502246,193.61,193.56,36.36]
[1761282489493,5.16502246,193.61,193.56,37.07]
[1761282489694,5.16502246,193.61,193.57,0.71]
[1761282490915,0.72,193.6,193.56,36.36]
[1761282491103,0.72,193.6,193.55,22.88]
[1761282491306,0.72,193.6,193.57,36.36]
[1761282492404,5.16555607,193.59,193.57,36.36]
[1761282492799,5.87555607,193.59,193.57,36.36]
[1761282494492,5.16555607,193.59,193.57,36.36]
[1761282495508,5.16555607,193.59,193.58,0.65]
[1761282495910,5.16555607,193.59,193.57,36.36]
[1761282496110,5.87555607,193.59,193.57,36.36]
[1761282496311,5.16555607,193.59,193.57,37.01]
[1761282497026,5.16528925,193.6,193.57,37.01]
[1761282501848,5.16528925,193.6,193.57,36.36]
[1761282502015,0.71,193.59,193.57,36.36]
[1761282502326,5.87528925,193.6,193.57,36.36]
[1761282503822,12.91255616,193.61,193.57,37.01]
[1761282504023,13.62255616,193.61,193.57,37.01]
[1761282504734,12.91255616,193.61,193.57,37.01]
[1761282504924,18.78757862,193.61,193.57,37.01]
[1761282505648,18.07757862,193.61,193.57,36.36]
[1761282505839,0.71,193.6,193.57,36.36]
[1761282507539,12.91255616,193.61,193.57,37.01]
[1761282507731,18.76757862,193.61,193.57,37.01]
[1761282508233,18.76757862,193.61,193.57,37.04]
[1761282508432,18.76757862,193.61,193.58,0.68]
[1761282510127,18.76757862,193.61,193.57,36.36]
[1761282510428,18.76757862,193.61,193.57,37.04]
[1761282510722,0.69,193.6,193.57,36.36]
[1761282511121,0.69,193.6,193.55,22.88]
[1761282511122,1.6393753,193.59,193.55,22.88]
[1761282511323,1.33566115,193.6,193.51,62.48]
[1761282511324,1.6393753,193.57,193.51,62.48]
[1761282511628,1.6393753,193.57,193.52,36.34]
[1761282511934,1.6393753,193.55,193.48,0.68]
[1761282512141,0.69,193.56,193.37,2.69612431]
[1761282512142,1.6393753,193.5,193.43,0.68]
[1761282512345,0.69,193.5,193.44,36.34]
[1761282512531,0.69,193.5,193.47,22.88]
[1761282512739,5.16822574,193.49,193.48,36.34]
[1761282513645,18.77879011,193.49,193.42,0.68]
[1761282513847,19.72816541,193.49,193.43,31.96]
[1761282514041,18.77879011,193.49,193.43,54.84]
[1761282514244,18.77879011,193.49,193.43,55.52]
[1761282514743,18.08879011,193.49,193.43,55.52]
[1761282515045,18.77879011,193.49,193.43,55.52]
[1761282515852,18.77879011,193.49,193.43,54.84]
[1761282516160,5.16822574,193.49,193.44,0.68]
[1761282517342,5.16769159,193.51,193.44,0.68]
[1761282517729,12.9171497,193.55,193.48,22.88]
[1761282518050,0.69,193.54,193.49,36.34]
[1761282519441,18.77411697,193.54,193.49,36.34]
[1761282519744,18.77411697,193.54,193.49,37.02]
[1761282519944,0.69,193.53,193.49,36.34]